fUST/lending_fUST_20241105
["ID","MTS","AMOUNT","RATE_DAILY","PERIOD"]
[341324886,1730800234032,-520.49484714,0.00030136,3]
[341324887,1730800234041,-5089.03,0.00030136,3]
[341324888,1730800234051,-500.0,0.00030136,3]
[341324889,1730800234060,-513.25229359,0.00030136,3]
[341324890,1730800234070,-151.0,0.00030136,7]
[341324891,1730800234081,-500.0,0.00030136,3]
[341324892,1730800234091,-500.0,0.00030136,3]
[341324893,1730800234101,-1215.79,0.00030136,3]
[341324894,1730800234111,-897.67,0.00030136,3]
[341324895,1730800234122,-505.34688401,0.00030136,3]
[341324896,1730800234131,-500.0,0.00030136,3]
[341324897,1730800234142,-500.0,0.00030136,3]
[341324898,1730800234151,-583.27,0.00030136,3]
[341324899,1730800234160,-500.0,0.00030136,3]
[341324900,1730800234170,-510.56815051,0.00030136,3]
[341324901,1730800234180,-1803.82,0.00030136,3]
[341324902,1730800234190,-510.06931881,0.00030136,3]
[341324903,1730800234200,-500.0,0.00030136,3]
[341324904,1730800234209,-500.0,0.00030136,3]
[341324905,1730800234219,-500.0,0.00030136,3]
[341324906,1730800234230,-354.6228,0.00030136,7]
[341324907,1730800234239,-509.54064428,0.00030136,3]
[341324908,1730800234248,-500.0,0.00030136,3]
[341324909,1730800234258,-354.6228,0.00030136,7]
[341324910,1730800234268,-195.852013,0.00030136,7]
[341324911,1730800234278,-500.0,0.00030136,3]
[341324912,1730800234289,-500.0,0.00030136,3]
[341324913,1730800234299,-195.852013,0.00030136,7]
[341324914,1730800234309,-500.0,0.00030136,3]
[341324915,1730800234319,-255.471817,0.00030136,7]
[341324916,1730800234328,-508.77484194,0.00030136,3]
[341324917,1730800234338,-500.0,0.00030136,3]
[341324918,1730800234347,-49.38062348,0.00030136,7]
[341324919,1730800234364,-206.09119352,0.00030136,7]
[341324920,1730800234374,-543.77150885,0.00030136,3]
[341324921,1730800234384,-500.0,0.00030136,3]
[341324922,1730800234394,-500.0,0.00030136,3]
[341324923,1730800234404,-500.0,0.00030136,3]
[341324924,1730800234414,-502.44602663,0.00030136,3]
[341324925,1730800234424,-151.34285,0.00030136,7]
[341324926,1730800234433,-500.0,0.00030136,3]
[341324927,1730800234443,-466.94457294,0.00030136,3]
[341324928,1730800234456,-33.05542706,0.00030136,3]
[341324929,1730800234466,-500.0,0.00030136,3]
[341324930,1730800234477,-151.0,0.00030136,7]
[341324931,1730800234487,-503.03336089,0.00030136,3]
[341324932,1730800234496,-500.0,0.00030136,3]
[341324933,1730800234506,-192.214863,0.00030136,7]
[341324934,1730800234517,-219.97438151,0.00030136,3]
[341324935,1730800234534,-280.91688557,0.00030136,3]
[341324936,1730800234544,-500.0,0.00030136,3]
[341324937,1730800234554,-192.214863,0.00030136,7]
[341324938,1730800234563,-515.84751369,0.00030136,3]
[341324939,1730800234575,-502.61743661,0.00030136,3]
[341324940,1730800234586,-500.0,0.00030136,3]
[341324941,1730800234597,-151.0,0.00030136,7]
[341324942,1730800234606,-151.0,0.00030136,7]
[341324943,1730800234617,-592.44943402,0.00030136,3]
[341324944,1730800234627,-500.0,0.00030136,3]
[341324945,1730800234638,-507.67536231,0.00030136,3]
[341324946,1730800234652,-500.0,0.00030136,3]
[341324947,1730800234661,-357.78442516,0.00030136,3]
[341324951,1730800238371,-142.21557484,0.00030136,3]
[341324952,1730800238383,-500.0,0.00030136,3]
[341324953,1730800238393,-539.20147462,0.00030136,3]
[341324954,1730800238402,-500.0,0.00030136,3]
[341324955,1730800238411,-500.0,0.00030136,3]
[341324956,1730800238421,-500.0,0.00030136,3]
[341324957,1730800238430,-500.0,0.00030136,3]
[341324958,1730800238439,-151.0,0.00030136,7]
[341324959,1730800238450,-500.0,0.00030136,3]
[341324960,1730800238459,-500.0,0.00030136,3]
[341324961,1730800238469,-500.0,0.00030136,3]
[341324962,1730800238478,-500.0,0.00030136,3]
[341324963,1730800238487,-151.0,0.00030136,7]
[341324964,1730800238498,-372.067631,0.00030136,7]
[341324965,1730800238507,-500.0,0.00030136,3]
[341324966,1730800238518,-151.0,0.00030136,7]
[341324967,1730800238529,-514.36344398,0.00030136,3]
[341324968,1730800238541,-552.39111165,0.00030136,3]
[341324969,1730800238552,-372.067631,0.00030136,7]
[341324970,1730800238563,-327.40280213,0.00030136,3]
[341324971,1730800238653,-175.99924258,0.00030136,3]
[341324972,1730800238664,-159.78225077,0.00030136,3]
[341324977,1730800240291,-638.36546201,0.00030126,10]
[341324978,1730800240306,-9.55453799,0.00030126,10]
[341324979,1730800240318,-340.21774923,0.00030136,3]
[341324980,1730800240328,-182.60725256,0.00030136,3]
[341324981,1730800240341,-317.39274744,0.00030136,3]
[341324982,1730800240351,-503.35201141,0.00030136,3]
[341324983,1730800240361,-246.5673834,0.00030136,3]
[341325014,1730800246595,-122.19700452,0.00030135,2]
[341325015,1730800246627,520.83333333,0.00022994,2]
[341325016,1730800258958,2084.87484904,0.00028312,2]
[341325017,1730800273072,598.62102264,0.00024851,2]
[341325018,1730800273096,1675.62722037,0.00024851,2]
[341325019,1730800496508,520.83333333,0.00020185,2]
[341325020,1730800895819,168.266599,0.00013973,2]
[341325021,1730801109680,520.83333333,0.00020185,2]
[341325022,1730801157147,-168.5346242,0.00021674,2]
[341325023,1730801157177,-593.9707545,0.00021674,2]
[341325024,1730801157206,-3176.45672859,0.00022566,2]
[341325026,1730801237122,-393.5541071,0.00022009,2]
[341325027,1730801237144,-505.20963376,0.00022013,2]
[341325028,1730801246090,-238.20975784,0.00022013,2]
[341325029,1730801246114,-300.0,0.00022664,2]
[341325030,1730801246137,-300.0,0.00022664,2]
[341325031,1730801246159,-168.12664363,0.00022665,2]
[341325032,1730801246182,-500.0,0.00022665,2]
[341325033,1730801246207,-500.0,0.00022665,2]
[341325034,1730801246232,-500.0,0.00022665,2]
[341325035,1730801246256,-500.0,0.00022665,2]
[341325036,1730801246277,-500.0,0.00022665,2]
[341325037,1730801246304,-500.0,0.00022665,2]
[341325038,1730801246326,-500.0,0.00022665,2]
[341325039,1730801246347,-256.04403847,0.00022665,2]
[341325040,1730801246369,-273.5149289,0.00022665,2]
[341325041,1730801246392,-391.27347827,0.00022665,2]
[341325042,1730801246417,-2179.12888614,0.00022666,2]
[341325043,1730801253177,-731.60442959,0.00022665,2]
[341325044,1730801351106,-1220.16014238,0.00022665,2]
[341325045,1730801361105,-3048.23542803,0.00022665,2]
[341325046,1730801361127,-300.0,0.00022665,2]
[341325047,1730801361149,-300.0,0.00022665,2]
[341325048,1730801361170,-8578.37451997,0.00022666,2]
[341325049,1730801362097,-2082.31336815,0.00022666,2]
[341325050,1730801365099,-554.20757,0.00022666,2]
[341325051,1730801365120,-500.0,0.000227,2]
[341325052,1730801365141,-503.19769425,0.000227,2]
[341325053,1730801365161,-500.0,0.0002407,2]
[341325054,1730801365183,-167.50104,0.00024227,2]
[341325055,1730801365204,-167.50104,0.00024348,2]
[341325056,1730801365229,-3253.71739255,0.00024558,2]
[341325057,1730801365255,-164.87822783,0.00024658,2]
[341325058,1730801365276,-500.0,0.00024658,2]
[341325059,1730801365300,-500.0,0.00024658,2]
[341325060,1730801365322,-518.2873172,0.00024658,2]
[341325061,1730801365343,-1087.52258428,0.00024851,2]
[341325062,1730801370098,-3912.47741572,0.00024851,2]
[341325063,1730801370119,-420.0,0.00024932,2]
[341325064,1730801370142,-22464.3429518,0.00024954,2]
[341325065,1730801370161,-302.78807257,0.00025,2]
[341325066,1730801370181,-415.9660585,0.00025081,2]
[341325067,1730801370201,-357.73008804,0.0002525,2]
[341325068,1730801370222,-3253.71739253,0.00027035,2]
[341325069,1730801370246,-587.0,0.00027425,2]
[341325070,1730801370266,-153.276,0.00027577,17]
[341325071,1730801398493,2185.07,0.00033724,30]
[341325072,1730801411256,520.83333333,0.00021674,2]
[341325087,1730801432413,-250.0,0.00029133,2]
[341325088,1730801432444,-4750.0,0.00029133,2]
[341325089,1730801432458,-255.0,0.00030099,2]
[341325090,1730801432468,-3000.0,0.000301,2]
[341325091,1730801432478,-3000.0,0.0003011,2]
[341325092,1730801432487,-1176.21584004,0.0003012,2]
[341325176,1730801438750,-197.05721432,0.00030109,2]
[341325178,1730801438760,-1823.78415996,0.0003012,2]
[341325180,1730801438769,-363.32,0.00030126,3]
[341325182,1730801438779,-1015.61,0.00030126,10]
[341325185,1730801438788,-846.34,0.00030126,10]
[341325187,1730801438798,-3000.0,0.0003013,3]
[341325189,1730801438807,-5000.0,0.00030135,2]
[341325191,1730801438817,-3666.04175699,0.00030135,2]
[341325193,1730801438826,-500.0,0.00030136,3]
[341325195,1730801438836,-518.45450185,0.00030136,3]
[341325197,1730801438845,-440.59945818,0.00030136,3]
[341325198,1730801438854,-412.97051897,0.00030136,3]
[341325201,1730801438863,-500.0,0.00030136,3]
[341325203,1730801438872,-500.0,0.00030136,3]
[341325205,1730801438881,-500.0,0.00030136,3]
[341325207,1730801438890,-521.19161642,0.00030136,3]
[341325209,1730801438900,-86.99056031,0.00030136,3]
[341325311,1730801441148,-99.86263787,0.00030136,3]
[341325316,1730801443441,-331.75164942,0.00030136,3]
[341325317,1730801443454,-500.0,0.00030136,3]
[341325318,1730801443466,-500.0,0.00030136,3]
[341325319,1730801443479,-58.12548043,0.00030136,3]
[341325336,1730801475080,520.83333333,0.00021376,2]
[341325337,1730801480169,277.103785,0.00022666,2]
[341325338,1730801493407,1355.58029821,0.00022665,2]
[341325339,1730801493431,3644.41970179,0.00022665,2]
[341325340,1730801537329,195.75397856,0.00021078,2]
[341325341,1730801723977,520.83333333,0.00020185,2]
[341325349,1730802333107,-295.62589328,0.00021824,2]
[341325351,1730802335518,520.83333333,0.00020185,2]
[341325364,1730802436121,-234.23303514,0.00022666,2]
[341325365,1730802439137,-976.90527957,0.00022666,2]
[341325366,1730802445079,-1788.86168529,0.00022666,2]
[341325367,1730802445102,-150.84293585,0.00024658,2]
[341325368,1730802445125,-890.65,0.00025,2]
[341325369,1730802445148,-277.1037853,0.0002719,2]
[341325370,1730802445170,-200.257696,0.00027456,2]
[341325371,1730802445192,-290.850996,0.00028186,2]
[341325372,1730802445215,-167.5010394,0.00028186,2]
[341325373,1730802445237,-290.850996,0.00028871,2]
[341325374,1730802445260,-290.850996,0.00029556,2]
[341325375,1730802445281,-300.0,0.00029669,2]
[341325376,1730802445302,-300.0,0.00029669,2]
[341325377,1730802445324,-302.7081422,0.00029671,30]
[341325378,1730802445347,-303.3217478,0.00029671,30]
[341325379,1730802445368,-100.88690329,0.0003,2]
[341325380,1730802450091,-57.11309671,0.0003,2]
[341325381,1730802450114,-217.43589748,0.00030033,2]
[341325382,1730802452089,-185.37134852,0.00030033,2]
[341325403,1730802548117,-497.87108214,0.00021973,2]
[341325404,1730802551102,-2.12891786,0.00021973,2]
[341325405,1730802551129,-500.88113479,0.00021973,2]
[341325406,1730802551261,-300.0,0.00021999,2]
[341325407,1730802551308,-300.0,0.00021999,2]
[341325408,1730802551329,-115686.22147406,0.00022,30]
[341325411,1730802552100,-63524.84508387,0.00022,30]
[341325412,1730802561108,-500.0,0.00021973,2]
[341325413,1730802561131,-277841.31340424,0.00022,30]
[341325414,1730802563167,-124670.74649978,0.00022,30]
[341325415,1730802567134,-2813.34400307,0.00022,30]
[341325433,1730802632605,-500.0,0.00021973,2]
[341325434,1730802632618,-300.0,0.00021999,2]
[341325435,1730802632627,-8112.61683334,0.00022,30]
[341325479,1730802638600,-500.0,0.00021999,2]
[341325481,1730802638610,-270.77379515,0.00021999,2]
[341325483,1730802638619,-500.0,0.00021999,2]
[341325485,1730802638629,-500.0,0.00021999,2]
[341325487,1730802638638,-500.0,0.00021999,2]
[341325489,1730802638647,-500.0,0.00021999,2]
[341325491,1730802638658,-500.0,0.00021999,2]
[341325493,1730802638671,-500.0,0.00021999,2]
[341325495,1730802638680,-500.0,0.00021999,2]
[341325497,1730802638689,-447.22634676,0.00021999,2]
[341325500,1730802638699,-362.36532303,0.00021999,2]
[341325502,1730802638708,-500.0,0.00021999,2]
[341325504,1730802638718,-610.2,0.00021999,2]
[341325506,1730802638730,-620.39359599,0.00021999,2]
[341325508,1730802638739,-500.0,0.00021999,2]
[341325510,1730802638749,-500.0,0.00021999,2]
[341325512,1730802638759,-500.0,0.00021999,2]
[341325514,1730802638768,-174.17862049,0.00021999,2]
[341325612,1730802643791,-325.82137951,0.00021999,2]
[341325614,1730802643801,-500.0,0.00021999,2]
[341325616,1730802643812,-500.0,0.00021999,2]
[341325618,1730802643823,-500.0,0.00021999,2]
[341325619,1730802643832,-500.0,0.00021999,2]
[341325620,1730802643842,-436.41368206,0.00021999,2]
[341325621,1730802643851,-332.32641908,0.00021999,2]
[341325622,1730802643860,-500.0,0.00021999,2]
[341325623,1730802643870,-500.0,0.00021999,2]
[341325624,1730802643879,-500.0,0.00021999,2]
[341325625,1730802643888,-520.83333333,0.00021999,2]
[341325626,1730802643899,-5519.67008693,0.00022,30]
[341325636,1730802646686,-26.02589279,0.00022,30]
[341325637,1730802948275,520.83333333,0.00020185,2]
[341325639,1730803538129,-520.83333333,0.00020339,2]
[341325640,1730803538157,-1716.114341,0.00020498,2]
[341325641,1730803538181,-277.103785,0.00020563,2]
[341325642,1730803538202,-175.323041,0.00020645,2]
[341325643,1730803538224,-167.50104,0.00020793,2]
[341325644,1730803538245,-167.50104,0.00020897,2]
[341325645,1730803538267,-331.2331251,0.00020956,2]
[341325646,1730803538289,-188.18400904,0.00021536,2]
[341325647,1730803538407,-1592.54418483,0.00021899,2]
[341325648,1730803554213,-2081.79856225,0.00021899,2]
[341325649,1730803554237,-545.76630484,0.000219,2]
[341325650,1730803554260,-166.666666,0.00021918,2]
[341325651,1730803554288,-500.0,0.00021973,2]
[341325652,1730803554311,-500.0,0.00021973,2]
[341325653,1730803554334,-303.6,0.0002199,3]
[341325654,1730803554360,-300.0,0.00021996,2]
[341325655,1730803554383,-500.0,0.00021997,2]
[341325656,1730803554406,-500.0,0.00021997,2]
[341325657,1730803554429,-359.74836262,0.00021997,2]
[341325658,1730803554450,-500.0,0.00021997,2]
[341325659,1730803554473,-500.0,0.00021997,2]
[341325660,1730803554495,-500.0,0.00021997,2]
[341325661,1730803554516,-253.56063655,0.00021997,2]
[341325662,1730803554538,-500.0,0.00021997,2]
[341325663,1730803554560,-500.0,0.00021997,2]
[341325664,1730803554584,-500.0,0.00021997,2]
[341325665,1730803554606,-500.0,0.00021997,2]
[341325666,1730803554630,-500.0,0.00021997,2]
[341325667,1730803554654,-500.0,0.00021997,2]
[341325668,1730803554677,-618.14521049,0.00021997,2]
[341325669,1730803554700,-212.7278922,0.00021997,2]
[341325670,1730803554722,-5000.0,0.00021998,2]
[341325671,1730803554742,-187.24103609,0.00021999,2]
[341325672,1730803554765,-5000.0,0.00021999,2]
[341325673,1730803554786,-5000.0,0.00021999,2]
[341325674,1730803554807,-5000.0,0.00021999,2]
[341325675,1730803554828,-5000.0,0.00021999,2]
[341325676,1730803554849,-3654.89210515,0.00021999,2]
[341325677,1730803554870,-77057.45626118,0.00022,30]
[341325678,1730803560703,520.83333333,0.00020185,2]
[341325679,1730803625285,-191.838763,0.00020994,2]
[341325680,1730803625309,-511.6064451,0.00021,2]
[341325681,1730803625330,-192.08641196,0.000218,2]
[341325682,1730803625354,-357.27494746,0.00021973,2]
[341325683,1730803634085,-160.13153452,0.00021973,2]
[341325684,1730803634111,-500.0,0.00021973,2]
[341325685,1730803634135,-500.0,0.00021973,2]
[341325686,1730803634160,-301.41421024,0.00021999,2]
[341325687,1730803634186,-290.90502339,0.00021999,2]
[341325688,1730803634209,-300.0,0.00021999,2]
[341325689,1730803634234,-262835.6901927,0.00022,30]
[341325690,1730803637085,-7885.05699466,0.00022,30]
[341325691,1730803653184,-61893.67017017,0.00022,30]
[341325692,1730803749114,-300.0,0.00021334,2]
[341325693,1730803749138,-300.0,0.00021334,2]
[341325694,1730803749160,-2841.547196,0.00021335,2]
[341325695,1730803749181,-2103.4889373,0.00021335,2]
[341325696,1730803749203,-2054.57218349,0.000219,2]
[341325697,1730803753155,-1607.07399107,0.000219,2]
[341325698,1730803758491,-283.55862583,0.000219,2]
[341325699,1730803758514,-452.19361313,0.00021973,2]
[341325700,1730803758537,-500.0,0.00021973,2]
[341325701,1730803758559,-434.48266255,0.00021973,2]
[341325737,1730803832907,-410.77025274,0.00021973,2]
[341325741,1730803832940,-89.22974726,0.00021973,2]
[341325742,1730803832950,-300.0,0.00021999,2]
[341325743,1730803832961,-300.0,0.00021999,2]
[341325744,1730803832970,-1973.16275075,0.00022,30]
[341325757,1730803839025,-18702.6147832,0.00022,30]
[341325771,1730803840741,-20722.33947477,0.00022,30]
[341325772,1730803840779,-6877.07446335,0.00022,30]
[341325814,1730803844061,-500.0,0.00021973,2]
[341325816,1730803844072,-12526.84478193,0.00022,30]
[341325847,1730803846798,-29432.01566232,0.00022,30]
[341325866,1730804172718,520.83333333,0.00020185,2]
[341325876,1730804398079,-452.59,0.00030545,120]
[341325881,1730804792744,520.83333333,0.00020185,2]
[341325882,1730804801115,-165.4751527,0.00020575,2]
[341325883,1730804801138,-101.85271911,0.0002059,2]
[341325884,1730804826085,-1983.02212999,0.0002059,2]
[341325885,1730804826108,-4019.8405109,0.00020623,2]
[341325886,1730804826130,-361.715914,0.0002076,2]
[341325887,1730804826152,-1405.4951045,0.00020773,2]
[341325888,1730804829129,-300.0,0.00021457,2]
[341325889,1730804829150,-300.0,0.00021457,2]
[341325890,1730804829172,-183.72464338,0.000219,2]
[341325891,1730804948090,-1425.866428,0.00020914,2]
[341325892,1730804948112,-2.20486025,0.00021599,2]
[341325893,1730804948141,-1423.66156775,0.00021599,2]
[341325894,1730804948163,-470.30794652,0.000219,2]
[341325895,1730804948185,-166.666666,0.00021918,2]
[341325896,1730804948205,-301.012,0.00021918,14]
[341325897,1730804948226,-500.0,0.00021973,2]
[341325898,1730804948248,-503.19769425,0.00021973,2]
[341325899,1730804948270,-90.47529863,0.00021997,2]
[341325900,1730804949125,-209.52470137,0.00021997,2]
[341325901,1730804949147,-300.0,0.00021997,2]
[341325902,1730804949173,-500.0,0.00021998,2]
[341325903,1730804949194,-168.12664363,0.00021998,2]
[341325904,1730804949218,-500.0,0.00021998,2]
[341325905,1730804949244,-256.04403847,0.00021998,2]
[341325906,1730804949269,-500.0,0.00021998,2]
[341325907,1730804949294,-500.0,0.00021998,2]
[341325908,1730804949319,-500.0,0.00021998,2]
[341325909,1730804949343,-500.0,0.00021998,2]
[341325910,1730804949372,-500.0,0.00021998,2]
[341325911,1730804949396,-500.0,0.00021998,2]
[341325912,1730804949418,-500.0,0.00021998,2]
[341325913,1730804949440,-181.01644593,0.00021998,2]
[341325914,1730804949466,-545.58897029,0.00021998,2]
[341325915,1730804949489,-227.28766336,0.00021998,2]
[341325916,1730804949512,-164.598,0.00021999,2]
[341325917,1730804949533,-2933.20270292,0.00021999,2]
[341325918,1730804949555,-8988.28751642,0.00022,30]
[341325919,1730804959098,-2968.46185171,0.00021998,2]
[341325920,1730804959120,-2968.46185171,0.00021998,2]
[341325921,1730804959143,-2968.46185171,0.00021998,2]
[341325922,1730804959166,-2968.46185171,0.00021998,2]
[341325923,1730804959189,-2968.46185171,0.00021998,2]
[341325924,1730804959212,-2968.46185171,0.00021998,2]
[341325925,1730804959235,-2968.46185171,0.00021998,2]
[341325926,1730804959257,-2968.46185171,0.00021998,2]
[341325927,1730804959279,-2968.46185171,0.00021998,2]
[341325928,1730804959300,-2968.46185171,0.00021998,2]
[341325929,1730804959323,-2968.46185171,0.00021998,2]
[341325930,1730804959345,-2968.46185171,0.00021998,2]
[341325931,1730804959367,-2968.46185171,0.00021998,2]
[341325932,1730804959389,-2968.46185171,0.00021998,2]
[341325933,1730804959411,-2968.46185171,0.00021998,2]
[341325934,1730804959433,-2968.46185171,0.00021998,2]
[341325935,1730804959456,-2968.46185171,0.00021998,2]
[341325936,1730804959478,-2968.46185171,0.00021998,2]
[341325937,1730804959501,-2968.46185171,0.00021998,2]
[341325938,1730804959524,-2968.46185171,0.00021998,2]
[341325939,1730804959547,-2968.46185171,0.00021998,2]
[341325940,1730804959569,-2968.46185171,0.00021998,2]
[341325941,1730804959592,-221.85899673,0.00021998,2]
[341325942,1730804960148,-1197.53064428,0.00021998,2]
[341325959,1730805032712,-180.857957,0.00021048,2]
[341325960,1730805032721,-500.0,0.00021973,2]
[341325961,1730805032731,-500.0,0.00021973,2]
[341325962,1730805032741,-274.78550495,0.00021997,2]
[341325963,1730805032756,-25.21449505,0.00021997,2]
[341325964,1730805032766,-300.0,0.00021997,2]
[341325965,1730805032776,-324.78550495,0.00022,30]
[341325970,1730805038315,-220.85909526,0.00021973,2]
[341325971,1730805038326,-186.7796051,0.00021997,2]
[341325972,1730805038336,-1.23916114,0.00021997,2]
[341326064,1730805045988,-155.09404728,0.00021997,2]
[341326065,1730805046090,-1293.98875363,0.00021997,2]
[341326066,1730805046101,-173.73390873,0.00021997,2]
[341326067,1730805046131,-1276.58805332,0.00021997,2]
[341326068,1730805046141,-780.44080268,0.00021997,2]
[341326071,1730805391232,-165.475151,0.0002027,2]
[341326072,1730805391254,-520.83333333,0.00020543,2]
[341326073,1730805391276,-415.9660585,0.00020653,2]
[341326074,1730805391299,-300.0,0.0002075,2]
[341326075,1730805391326,-300.0,0.0002075,2]
[341326076,1730805391349,-165.7209875,0.00020751,2]
[341326077,1730805391372,-973.26006528,0.00020751,2]
[341326078,1730805391395,-214.24545391,0.00020751,2]
[341326079,1730805391418,-973.26006528,0.00020751,2]
[341326080,1730805391442,-500.0,0.00020751,2]
[341326081,1730805391464,-973.26006528,0.00020751,2]
[341326082,1730805391487,-973.26006528,0.00020751,2]
[341326083,1730805391511,-500.0,0.00020751,2]
[341326084,1730805391534,-973.26006528,0.00020751,2]
[341326085,1730805391558,-500.0,0.00020751,2]
[341326086,1730805391580,-973.26006528,0.00020751,2]
[341326087,1730805391604,-973.26006528,0.00020751,2]
[341326088,1730805391628,-500.0,0.00020751,2]
[341326089,1730805391650,-973.26006528,0.00020751,2]
[341326090,1730805391676,-500.0,0.00020751,2]
[341326091,1730805391698,-973.26006528,0.00020751,2]
[341326092,1730805391720,-973.26006528,0.00020751,2]
[341326093,1730805391745,-428.87996757,0.00020751,2]
[341326094,1730805391769,-973.26006528,0.00020751,2]
[341326095,1730805391792,-973.26006528,0.00020751,2]
[341326096,1730805391814,-973.26006528,0.00020751,2]
[341326097,1730805391837,-973.26006528,0.00020751,2]
[341326098,1730805391868,-973.26006528,0.00020751,2]
[341326099,1730805391892,-973.26006528,0.00020751,2]
[341326100,1730805391917,-973.26006528,0.00020751,2]
[341326101,1730805391941,-973.26006528,0.00020751,2]
[341326102,1730805391965,-973.26006528,0.00020751,2]
[341326103,1730805391989,-973.26006528,0.00020751,2]
[341326104,1730805392011,-973.26006528,0.00020751,2]
[341326105,1730805392033,-973.26006528,0.00020751,2]
[341326106,1730805392055,-973.26006528,0.00020751,2]
[341326107,1730805392084,-973.26006528,0.00020751,2]
[341326108,1730805392108,-973.26006528,0.00020751,2]
[341326109,1730805392131,-973.26006528,0.00020751,2]
[341326110,1730805392153,-973.26006528,0.00020751,2]
[341326111,1730805392175,-973.26006528,0.00020751,2]
[341326112,1730805392198,-973.26006528,0.00020751,2]
[341326113,1730805392220,-973.26006528,0.00020751,2]
[341326114,1730805392243,-973.26006528,0.00020751,2]
[341326115,1730805392267,-973.26006528,0.00020751,2]
[341326116,1730805392290,-973.26006528,0.00020751,2]
[341326117,1730805392313,-973.26006528,0.00020751,2]
[341326118,1730805392338,-973.26006528,0.00020751,2]
[341326119,1730805392362,-973.26006528,0.00020751,2]
[341326120,1730805392385,-973.26006528,0.00020751,2]
[341326121,1730805392407,-973.26006528,0.00020751,2]
[341326122,1730805392430,-973.26006528,0.00020751,2]
[341326123,1730805392452,-973.26006528,0.00020751,2]
[341326124,1730805392475,-973.26006528,0.00020751,2]
[341326125,1730805392498,-973.26006528,0.00020751,2]
[341326126,1730805392521,-973.26006528,0.00020751,2]
[341326127,1730805392544,-973.26006528,0.00020751,2]
[341326128,1730805392567,-973.26006528,0.00020751,2]
[341326129,1730805392667,-973.26006528,0.00020751,2]
[341326130,1730805392689,-973.26006528,0.00020751,2]
[341326131,1730805392712,-973.26006528,0.00020751,2]
[341326132,1730805392734,-973.26006528,0.00020751,2]
[341326133,1730805392756,-973.26006528,0.00020751,2]
[341326134,1730805392778,-973.26006528,0.00020751,2]
[341326135,1730805392800,-973.26006528,0.00020751,2]
[341326136,1730805392822,-973.26006528,0.00020751,2]
[341326137,1730805392844,-973.26006528,0.00020751,2]
[341326138,1730805392881,-500.0,0.00020751,2]
[341326139,1730805392905,-500.0,0.00020751,2]
[341326140,1730805392930,-382.83350344,0.00020751,2]
[341326141,1730805392954,-4268.50524047,0.00020751,2]
[341326142,1730805392977,-4268.50524047,0.00020751,2]
[341326143,1730805393000,-4268.50524047,0.00020751,2]
[341326144,1730805393024,-4268.50524047,0.00020751,2]
[341326145,1730805393047,-4268.50524047,0.00020751,2]
[341326146,1730805393075,-4268.50524047,0.00020751,2]
[341326147,1730805393100,-4268.50524047,0.00020751,2]
[341326148,1730805393124,-4268.50524047,0.00020751,2]
[341326149,1730805393149,-4268.50524047,0.00020751,2]
[341326150,1730805393174,-4268.50524047,0.00020751,2]
[341326151,1730805393199,-4268.50524047,0.00020751,2]
[341326152,1730805393223,-4268.50524047,0.00020751,2]
[341326153,1730805393248,-4268.50524047,0.00020751,2]
[341326154,1730805393272,-4268.50524047,0.00020751,2]
[341326155,1730805393296,-4268.50524047,0.00020751,2]
[341326156,1730805393319,-4268.50524047,0.00020751,2]
[341326157,1730805393343,-4268.50524047,0.00020751,2]
[341326158,1730805393368,-4268.50524047,0.00020751,2]
[341326159,1730805393391,-4268.50524047,0.00020751,2]
[341326160,1730805393414,-4268.50524047,0.00020751,2]
[341326161,1730805393437,-4268.50524047,0.00020751,2]
[341326162,1730805393460,-4268.50524047,0.00020751,2]
[341326163,1730805393484,-4268.50524047,0.00020751,2]
[341326164,1730805393507,-4268.50524047,0.00020751,2]
[341326165,1730805393531,-4268.50524047,0.00020751,2]
[341326166,1730805393556,-4268.50524047,0.00020751,2]
[341326167,1730805393580,-4268.50524047,0.00020751,2]